[Event "8th RTU Open 2018"]
[Site "Riga"]
[Date "2018.08.06"]
[Round "1"]
[White "Svane, Rasmus"]
[Black "House, Glenn L"]
[Result "1-0"]
[ECO "A05"]
[WhiteElo "2591"]
[BlackElo "2200"]
[Annotator "ChessBase"]
[PlyCount "143"]
[EventDate "2018.08.06"]
[EventType "swiss"]
[EventCountry "LAT"]
[SourceTitle "playchess.com"]
[Source "ChessBase"]
[SourceQuality "1"]
[TimeControl "5400+30"]

1. Nf3 {[%emt 0:00:00]} Nf6 {[%emt 0:00:00]} 2. c4 {[%emt 0:00:00]} e6 {[%emt 0:00:04]} 3. g3 {[%emt 0:00:36]} b6 {[%emt 0:00:56]} 4. Bg2 {[%emt 0:00:08]} Bb7 {[%emt 0:00:07]} 5. O-O {[%emt 0:00:18]} Be7 {[%emt 0:00:06]} 6. d4 {[%emt 0:00:06]} O-O {[%emt 0:00:08]} 7. Re1 {[%emt 0:00:16]} d5 {[%emt 0:10:14]} 8. cxd5 {[%emt 0:00:04]} exd5 {[%emt 0:00:22]} 9. Nc3 {[%emt 0:00:02]} Na6 {[%emt 0:02:53]} 10. Bf4 {[%emt 0:00:14]} c5 {[%emt 0:00:50]} 11. dxc5 {[%emt 0:11:36]} Nxc5 {[%emt 0:02:07]} 12. Rc1 {[%emt 0:00:21]} Ne6 {[%emt 0:08:47]} 13. Be5 {[%emt 0:01:51]} Ng4 {[%emt 0:04:55]} 14. Bd4 {[%emt 0:02:43]} Bc5 {[%emt 0:06:52]} 15. e3 {[%emt 0:01:57]} Re8 {[%emt 0:10:22]} 16. Rc2 {[%emt 0:10:28]} Bxd4 {[%emt 0:13:39]} 17. Nxd4 {[%emt 0:01:14]} Nf6 {[%emt 0:02:43]} 18. Rd2 {[%emt 0:14:40]} Nc5 {[%emt 0:06:56]} 19. Nde2 {[%emt 0:07:41]} Qe7 {[%emt 0:12:52]} 20. Nxd5 {[%emt 0:09:56]} Nxd5 {[%emt 0:01:24]} 21. Bxd5 {[%emt 0:00:04]} Ne4 {[%emt 0:03:44]} 22. Bxb7 {[%emt 0:05:49]} Qxb7 {[%emt 0:00:17]} 23. Rd7 {[%emt 0:09:13]} Qc6 {[%emt 0:00:15]} 24. Nc3 {[%emt 0:02:05]} Nxc3 {[%emt 0:02:54]} 25. bxc3 {[%emt 0:00:02]} Qxc3 {[%emt 0:00:38]} 26. Re2 {[%emt 0:00:23]} Qf6 {[%emt 0:03:20]} 27. Rc2 {[%emt 0:01:28]} Rad8 {[%emt 0:01:29]} 28. Rcd2 {[%emt 0:04:07]} Rxd7 {[%emt 0:00:45]} 29. Rxd7 {[%emt 0:00:02]} g6 {[%emt 0:02:47]} 30. Rxa7 {[%emt 0:02:26]} Rd8 {[%emt 0:00:10]} 31. Qe2 {[%emt 0:04:44]} h5 {[%emt 0:01:00]} 32. h4 {[%emt 0:02:22]} Qa1+ {[%emt 0:00:28]} 33. Kg2 {[%emt 0:00:20]} Qd1 {[%emt 0:00:44]} 34. Qb2 {[%emt 0:02:50]} Qd5+ {[%emt 0:00:13]} 35. Kh2 {[%emt 0:00:03]} Qf3 {[%emt 0:00:58]} 36. Rc7 {[%emt 0:01:02]} Kh7 {[%emt 0:00:29]} 37. Rc1 {[%emt 0:00:16]} Rd6 {[%emt 0:00:40]} 38. Re1 {[%emt 0:02:59]} Qf6 {[%emt 0:00:22]} 39. Qe2 {[%emt 0:00:34]} Qc3 {[%emt 0:00:19]} 40. Kg2 {[%emt 0:00:49]} Kg7 {[%emt 0:00:08]} 41. Rd1 {[%emt 0:00:28]} Qc6+ {[%emt 0:00:21]} 42. Kg1 {[%emt 0:00:07]} Rxd1+ {[%emt 0:00:50]} 43. Qxd1 {[%emt 0:00:02]} Kg8 {[%emt 0:00:24]} 44. Qd8+ {[%emt 0:00:04]} Kg7 {[%emt 0:00:34]} 45. Qd4+ {[%emt 0:00:04]} Kg8 {[%emt 0:00:10]} 46. e4 {[%emt 0:00:52]} Qc1+ {[%emt 0:01:23]} 47. Kg2 {[%emt 0:00:07]} Qc7 {[%emt 0:00:44]} 48. Qd5 {[%emt 0:00:10]} Qe7 {[%emt 0:00:36]} 49. Kg1 {[%emt 0:01:52]} Kh7 {[%emt 0:00:26]} 50. Qc6 {[%emt 0:00:53]} Qb4 {[%emt 0:00:42]} 51. Kg2 {[%emt 0:00:41]} Qa3 {[%emt 0:00:31]} 52. Qc4 {[%emt 0:00:24]} Qe7 {[%emt 0:00:10]} 53. Kg1 {[%emt 0:00:53]} Kg8 {[%emt 0:00:23]} 54. Qb3 {[%emt 0:00:44]} Qd6 {[%emt 0:00:35]} 55. a3 {[%emt 0:00:16]} Qd4 {[%emt 0:00:22]} 56. Qb4 {[%emt 0:00:12]} Qd1+ {[%emt 0:00:39]} 57. Kh2 {[%emt 0:00:07]} Qd8 {[%emt 0:00:08]} 58. e5 {[%emt 0:01:34]} Qc7 {[%emt 0:00:33]} 59. Qb5 {[%emt 0:02:15]} Kg7 {[%emt 0:00:33]} 60. Qd5 {[%emt 0:00:16]} Qe7 {[%emt 0:00:38]} 61. Qd4 {[%emt 0:01:14]} Qe6 {[%emt 0:00:10]} 62. a4 {[%emt 0:00:11]} Kf8 {[%emt 0:00:20]} 63. Qd8+ {[%emt 0:00:11]} Kg7 {[%emt 0:00:11]} 64. Qd4 {[%emt 0:00:27]} Kf8 {[%emt 0:00:08]} 65. Qb4+ {[%emt 0:00:11]} Kg7 {[%emt 0:00:10]} 66. Qf4 {[%emt 0:00:28]} Qc6 {[%emt 0:00:23]} 67. Qd4 {[%emt 0:00:29]} Qe6 {[%emt 0:00:16]} 68. Kg1 {[%emt 0:00:08]} Kf8 {[%emt 0:00:09]} 69. Kf1 {[%emt 0:00:27]} Qc6 {[%emt 0:01:01]} 70. Ke2 {[%emt 0:00:17]} Ke7 {[%emt 0:01:09]} 71. Kd3 {[%emt 0:01:08]} Kf8 {[%emt 0:00:57]} 72. Qd6+ {[%emt 0:00:26]} 1-0

[Event "8th RTU Open 2018"]
[Site "Riga"]
[Date "2018.08.06"]
[Round "1"]
[White "Petrosyan, Manuel"]
[Black "Kukk, Sander"]
[Result "1-0"]
[ECO "B06"]
[WhiteElo "2567"]
[BlackElo "2194"]
[Annotator "ChessBase"]
[PlyCount "57"]
[EventDate "2018.08.06"]
[EventType "swiss"]
[EventCountry "LAT"]
[SourceTitle "playchess.com"]
[Source "ChessBase"]
[SourceQuality "1"]
[TimeControl "5400+30"]

1. d4 {[%emt 0:00:00]} g6 {[%emt 0:00:00]} 2. e4 {[%emt 0:00:34]} Bg7 {[%emt 0:00:00]} 3. Nc3 {[%emt 0:00:37]} c6 {[%emt 0:01:49]} 4. Be3 {[%emt 0:03:22]} d5 {[%emt 0:01:53]} 5. Qd2 {[%emt 0:00:07]} dxe4 {[%emt 0:04:36]} 6. Nxe4 {[%emt 0:00:06]} Nd7 {[%emt 0:01:14]} 7. c3 {[%emt 0:02:37]} Ngf6 {[%emt 0:02:10]} 8. Nxf6+ {[%emt 0:00:14]} Nxf6 {[%emt 0:00:12]} 9. Nf3 {[%emt 0:00:33]} O-O {[%emt 0:00:46]} 10. Bc4 {[%emt 0:01:13]} Nd5 {[%emt 0:04:23]} 11. Bg5 {[%emt 0:06:28]} Bg4 {[%emt 0:15:43]} 12. Ne5 {[%emt 0:03:06]} Be6 {[%emt 0:03:26]} 13. Bh6 {[%emt 0:02:30]} f6 {[%emt 0:03:09]} 14. Nd3 {[%emt 0:03:10]} Qd6 {[%emt 0:05:19]} 15. O-O {[%emt 0:12:06]} g5 {[%emt 0:04:12]} 16. Bxg7 {[%emt 0:01:01]} Kxg7 {[%emt 0:00:04]} 17. Nc5 {[%emt 0:04:46]} Bc8 {[%emt 0:08:23]} 18. Rae1 {[%emt 0:03:52]} b6 {[%emt 0:14:26]} 19. Ne4 {[%emt 0:00:34]} Qf4 {[%emt 0:01:26]} 20. Qe2 {[%emt 0:01:06]} Qc7 {[%emt 0:03:42]} 21. Ng3 {[%emt 0:01:18]} Rf7 {[%emt 0:04:48]} 22. f4 {[%emt 0:07:24]} h6 {[%emt 0:02:22]} 23. fxg5 {[%emt 0:06:55]} hxg5 {[%emt 0:00:14]} 24. Qe4 {[%emt 0:01:01]} Qd6 {[%emt 0:03:40]} 25. Bd3 {[%emt 0:01:58]} Kf8 {[%emt 0:03:40]} 26. Qg6 {[%emt 0:03:35]} Bg4 {[%emt 0:01:20]} 27. Ne4 {[%emt 0:02:05]} Qc7 {[%emt 0:01:03]} 28. Nxg5 {[%emt 0:00:22]} Rg7 {[%emt 0:00:07]} 29. Qh6 {[%emt 0:00:54]} 1-0

[Event "8th RTU Open 2018"]
[Site "Riga"]
[Date "2018.08.06"]
[Round "1"]
[White "Zakhartsov, Viacheslav V"]
[Black "Huber, Philipp"]
[Result "1-0"]
[ECO "A53"]
[WhiteElo "2544"]
[BlackElo "2189"]
[Annotator "ChessBase"]
[PlyCount "155"]
[EventDate "2018.08.06"]
[EventType "swiss"]
[EventCountry "LAT"]
[SourceTitle "playchess.com"]
[Source "ChessBase"]
[SourceQuality "1"]
[TimeControl "5400+30"]

1. d4 {[%emt 0:00:00]} Nf6 {[%emt 0:00:00]} 2. c4 {[%emt 0:00:00]} d6 {[%emt 0:00:00]} 3. Nf3 {[%emt 0:00:00]} Nbd7 {[%emt 0:00:00]} 4. Nc3 {[%emt 0:00:00]} c6 {[%emt 0:00:00]} 5. e4 {[%emt 0:00:00]} e5 {[%emt 0:00:00]} 6. Be2 {[%emt 0:00:00]} Be7 {[%emt 0:00:00]} 7. O-O {[%emt 0:00:00]} O-O {[%emt 0:00:00]} 8. Be3 {[%emt 0:00:01]} Ng4 {[%emt 0:00:13]} 9. Bd2 {[%emt 0:00:28]} Ngf6 {[%emt 0:05:24]} 10. d5 {[%emt 0:07:37]} Nc5 {[%emt 0:00:48]} 11. Qc2 {[%emt 0:01:30]} a5 {[%emt 0:06:51]} 12. Be3 {[%emt 0:10:17]} Qc7 {[%emt 0:00:19]} 13. Nd2 {[%emt 0:02:16]} Ne8 {[%emt 0:14:14]} 14. a3 {[%emt 0:10:03]} f5 {[%emt 0:03:28]} 15. f3 {[%emt 0:11:11]} f4 {[%emt 0:06:09]} 16. Bf2 {[%emt 0:03:55]} Na6 {[%emt 0:00:42]} 17. dxc6 {[%emt 0:15:05]} bxc6 {[%emt 0:00:22]} 18. Rab1 {[%emt 0:02:49]} Rb8 {[%emt 0:01:14]} 19. Rfc1 {[%emt 0:00:30]} Nf6 {[%emt 0:01:52]} 20. c5 {[%emt 0:03:10]} Nxc5 {[%emt 0:03:54]} 21. Bxc5 {[%emt 0:03:34]} dxc5 {[%emt 0:00:14]} 22. Na4 {[%emt 0:00:19]} Kh8 {[%emt 0:00:36]} 23. Nb3 {[%emt 0:03:19]} g5 {[%emt 0:03:07]} 24. Nbxc5 {[%emt 0:01:37]} g4 {[%emt 0:05:51]} 25. Qc3 {[%emt 0:01:34]} gxf3 {[%emt 0:00:31]} 26. Bxf3 {[%emt 0:00:06]} Ng4 {[%emt 0:22:52]} 27. Nd3 {[%emt 0:00:32]} Bf6 {[%emt 0:03:46]} 28. Qxc6 {[%emt 0:02:17]} Qg7 {[%emt 0:00:21]} 29. Qd6 {[%emt 0:02:25]} Rb7 {[%emt 0:00:54]} 30. Rxc8 {[%emt 0:03:09]} Rxc8 {[%emt 0:00:08]} 31. Bxg4 {[%emt 0:04:41]} Qxg4 {[%emt 0:00:09]} 32. Qxf6+ {[%emt 0:00:41]} Rg7 {[%emt 0:00:05]} 33. Ne1 {[%emt 0:00:04]} Rc2 {[%emt 0:01:32]} 34. Qxg7+ {[%emt 0:01:33]} Kxg7 {[%emt 0:00:06]} 35. Nxc2 {[%emt 0:00:04]} f3 {[%emt 0:00:19]} 36. Ne1 {[%emt 0:00:10]} Qxe4 {[%emt 0:00:10]} 37. Nc3 {[%emt 0:00:09]} Qe3+ {[%emt 0:00:59]} 38. Kf1 {[%emt 0:00:21]} e4 {[%emt 0:00:47]} 39. gxf3 {[%emt 0:00:20]} exf3 {[%emt 0:00:21]} 40. Rd1 {[%emt 0:00:34]} Qf4 {[%emt 0:00:06]} 41. a4 {[%emt 0:03:27]} Qxh2 {[%emt 0:00:21]} 42. Nxf3 {[%emt 0:00:05]} Qxb2 {[%emt 0:00:15]} 43. Rd3 {[%emt 0:00:10]} Kg6 {[%emt 0:01:26]} 44. Nd4 {[%emt 0:00:38]} h5 {[%emt 0:01:24]} 45. Nde2 {[%emt 0:00:02]} h4 {[%emt 0:01:11]} 46. Kg2 {[%emt 0:00:17]} Qb7+ {[%emt 0:00:36]} 47. Rd5 {[%emt 0:00:16]} Qc8 {[%emt 0:00:25]} 48. Nf4+ {[%emt 0:02:17]} Kf7 {[%emt 0:00:04]} 49. Nce2 {[%emt 0:00:23]} Qg4+ {[%emt 0:00:27]} 50. Kh2 {[%emt 0:00:11]} Qf3 {[%emt 0:01:22]} 51. Rxa5 Qf2+ {[%emt 0:00:04]} 52. Kh3 {[%emt 0:01:06]} Qf1+ {[%emt 0:00:04]} 53. Kg4 {[%emt 0:00:20]} h3 {[%emt 0:00:59]} 54. Ng3 {[%emt 0:01:45]} Qc4 {[%emt 0:00:18]} 55. Kxh3 Ke8 {[%emt 0:00:35]} 56. Re5+ {[%emt 0:00:38]} Kd7 {[%emt 0:00:26]} 57. Re4 {[%emt 0:00:07]} Qf7 {[%emt 0:00:38]} 58. Kg4 {[%emt 0:00:47]} Kc6 {[%emt 0:00:27]} 59. Nf5 {[%emt 0:00:24]} Kb6 {[%emt 0:00:18]} 60. Ne3 {[%emt 0:00:20]} Qg8+ {[%emt 0:00:16]} 61. Kf3 {[%emt 0:01:25]} Ka5 {[%emt 0:00:10]} 62. Nfd5 {[%emt 0:00:43]} Qc8 {[%emt 0:03:19]} 63. Nc4+ {[%emt 0:00:25]} Ka6 {[%emt 0:00:03]} 64. Nde3 {[%emt 0:02:54]} Qh3+ {[%emt 0:00:14]} 65. Ke2 {[%emt 0:00:05]} Qh1 {[%emt 0:00:24]} 66. Re6+ {[%emt 0:00:14]} Ka7 {[%emt 0:00:08]} 67. a5 {[%emt 0:00:14]} Qa1 {[%emt 0:00:50]} 68. Kd3 {[%emt 0:00:13]} Qg7 {[%emt 0:00:40]} 69. Ke4 {[%emt 0:00:24]} Qc7 {[%emt 0:00:58]} 70. Kd4 {[%emt 0:00:36]} Qf4+ {[%emt 0:01:21]} 71. Kd5 {[%emt 0:00:51]} Qg5+ {[%emt 0:00:09]} 72. Kc6 {[%emt 0:00:38]} Qd8 {[%emt 0:00:18]} 73. Nd5 {[%emt 0:00:29]} Qc8+ {[%emt 0:00:11]} 74. Nc7 {[%emt 0:00:07]} Qb7+ {[%emt 0:00:58]} 75. Kd7 {[%emt 0:00:06]} Qc8+ {[%emt 0:00:41]} 76. Kd6 {[%emt 0:00:15]} Qd8+ {[%emt 0:00:23]} 77. Kc6 {[%emt 0:00:06]} Qc8 {[%emt 0:00:31]} 78. Nd6 {[%emt 0:00:49]} 1-0

[Event "8th RTU Open 2018"]
[Site "Riga"]
[Date "2018.08.06"]
[Round "1"]
[White "Anurag, Mhamal"]
[Black "Breivik, Lars H"]
[Result "1-0"]
[ECO "B06"]
[WhiteElo "2484"]
[BlackElo "2168"]
[Annotator "ChessBase"]
[PlyCount "85"]
[EventDate "2018.08.06"]
[EventType "swiss"]
[EventCountry "LAT"]
[SourceTitle "playchess.com"]
[Source "ChessBase"]
[SourceQuality "1"]
[TimeControl "5400+30"]

1. d4 {[%emt 0:00:51]} g6 {[%emt 0:00:00]} 2. e4 {[%emt 0:01:11]} Bg7 {[%emt 0:00:00]} 3. Nc3 {[%emt 0:00:36]} c6 {[%emt 0:00:35]} 4. Nf3 {[%emt 0:04:14]} d6 {[%emt 0:01:15]} 5. Bc4 {[%emt 0:04:06]} Nf6 {[%emt 0:02:00]} 6. e5 {[%emt 0:00:15]} dxe5 {[%emt 0:00:15]} 7. Nxe5 {[%emt 0:00:06]} O-O {[%emt 0:00:39]} 8. O-O {[%emt 0:00:22]} Nd5 {[%emt 0:06:52]} 9. Re1 {[%emt 0:09:17]} Be6 {[%emt 0:01:22]} 10. Ne4 {[%emt 0:00:09]} Nc7 {[%emt 0:01:03]} 11. Bf1 {[%emt 0:00:20]} Nd7 {[%emt 0:05:53]} 12. Nxd7 {[%emt 0:10:55]} Qxd7 {[%emt 0:01:02]} 13. c3 {[%emt 0:04:47]} b6 {[%emt 0:01:36]} 14. Bf4 {[%emt 0:11:01]} Nd5 {[%emt 0:23:00]} 15. Bd2 {[%emt 0:01:31]} f6 {[%emt 0:00:34]} 16. Qa4 {[%emt 0:02:34]} Rfd8 {[%emt 0:04:28]} 17. Rad1 {[%emt 0:07:28]} Bf7 {[%emt 0:02:25]} 18. Qa3 {[%emt 0:12:56]} Nc7 {[%emt 0:15:26]} 19. b3 {[%emt 0:03:19]} Re8 {[%emt 0:04:44]} 20. g3 {[%emt 0:11:17]} Nb5 {[%emt 0:03:41]} 21. Qc1 {[%emt 0:00:49]} Nd6 {[%emt 0:02:50]} 22. f3 {[%emt 0:00:18]} Rad8 {[%emt 0:05:23]} 23. Bg2 {[%emt 0:00:06]} Nf5 {[%emt 0:02:25]} 24. Qc2 {[%emt 0:01:11]} Bd5 {[%emt 0:02:00]} 25. Bc1 {[%emt 0:00:19]} Nd6 {[%emt 0:01:26]} 26. Nf2 {[%emt 0:02:06]} Qf5 {[%emt 0:04:39]} 27. Rd3 {[%emt 0:00:20]} Qd7 {[%emt 0:02:49]} 28. Bb2 {[%emt 0:05:06]} Bf7 {[%emt 0:01:57]} 29. Bh3 {[%emt 0:02:06]} f5 {[%emt 0:02:12]} 30. Rde3 {[%emt 0:01:38]} Nb5 {[%emt 0:01:38]} 31. Nd3 {[%emt 0:00:47]} e6 {[%emt 0:00:05]} 32. Ne5 {[%emt 0:00:35]} Qd6 {[%emt 0:00:48]} 33. a4 {[%emt 0:02:24]} Nc7 {[%emt 0:00:11]} 34. c4 {[%emt 0:01:06]} c5 {[%emt 0:00:29]} 35. dxc5 {[%emt 0:00:25]} Qxc5 {[%emt 0:00:26]} 36. f4 {[%emt 0:00:55]} Nd5 {[%emt 0:00:13]} 37. Bc1 {[%emt 0:00:32]} Nxe3 {[%emt 0:01:06]} 38. Bxe3 {[%emt 0:00:01]} Qb4 {[%emt 0:00:09]} 39. Re2 {[%emt 0:00:13]} Qa3 {[%emt 0:00:30]} 40. Kf2 {[%emt 0:00:52]} Qd6 {[%emt 0:00:38]} 41. c5 {[%emt 0:00:36]} bxc5 {[%emt 0:01:00]} 42. Bxc5 {[%emt 0:00:01]} Qc7 {[%emt 0:00:18]} 43. Bg2 {[%emt 0:00:32]} 1-0

[Event "8th RTU Open 2018"]
[Site "Riga"]
[Date "2018.08.06"]
[Round "1"]
[White "Gretarsson, Helgi Ass"]
[Black "Smirnova, Ekaterina"]
[Result "1/2-1/2"]
[ECO "D02"]
[WhiteElo "2480"]
[BlackElo "2165"]
[Annotator "ChessBase"]
[PlyCount "81"]
[EventDate "2018.08.06"]
[EventType "swiss"]
[EventCountry "LAT"]
[SourceTitle "playchess.com"]
[Source "ChessBase"]
[SourceQuality "1"]
[TimeControl "5400+30"]

1. d4 {[%emt 0:00:00]} d5 {[%emt 0:00:00]} 2. Nf3 {[%emt 0:00:13]} Nf6 {[%emt 0:00:00]} 3. g3 {[%emt 0:01:07]} Bg4 {[%emt 0:00:16]} 4. Bg2 {[%emt 0:00:20]} e6 {[%emt 0:00:42]} 5. c4 {[%emt 0:01:06]} c6 {[%emt 0:00:38]} 6. Qb3 {[%emt 0:12:59]} Qb6 {[%emt 0:04:04]} 7. Nc3 {[%emt 0:01:49]} Be7 {[%emt 0:01:38]} 8. c5 {[%emt 0:04:35]} Qxb3 {[%emt 0:03:38]} 9. axb3 {[%emt 0:00:04]} Bxf3 {[%emt 0:03:26]} 10. Bxf3 {[%emt 0:00:09]} Na6 {[%emt 0:00:20]} 11. e3 {[%emt 0:30:05]} O-O {[%emt 0:02:10]} 12. Be2 {[%emt 0:03:52]} Nc7 {[%emt 0:00:48]} 13. b4 {[%emt 0:00:13]} a6 {[%emt 0:00:08]} 14. f3 {[%emt 0:00:25]} Nd7 {[%emt 0:02:00]} 15. e4 {[%emt 0:01:07]} Nb5 {[%emt 0:02:08]} 16. Be3 {[%emt 0:00:57]} f5 {[%emt 0:00:12]} 17. Kd2 {[%emt 0:18:58]} Nf6 {[%emt 0:04:31]} 18. Bxb5 {[%emt 0:09:34]} axb5 {[%emt 0:01:36]} 19. exf5 {[%emt 0:00:03]} exf5 {[%emt 0:00:08]} 20. Bg5 {[%emt 0:00:02]} h6 {[%emt 0:03:15]} 21. Bxf6 {[%emt 0:00:04]} Bxf6 {[%emt 0:00:03]} 22. Kd3 {[%emt 0:00:06]} Kf7 {[%emt 0:01:30]} 23. Ra3 {[%emt 0:00:21]} Rxa3 {[%emt 0:01:49]} 24. bxa3 {[%emt 0:00:01]} Ra8 {[%emt 0:00:09]} 25. Ra1 {[%emt 0:00:03]} Ke7 {[%emt 0:00:15]} 26. a4 {[%emt 0:11:44]} bxa4 {[%emt 0:00:17]} 27. Ra3 {[%emt 0:01:06]} Kd7 {[%emt 0:00:53]} 28. b5 {[%emt 0:00:10]} cxb5 {[%emt 0:03:58]} 29. Nxb5 {[%emt 0:00:04]} Kc6 {[%emt 0:00:37]} 30. Nc3 {[%emt 0:00:07]} Bd8 {[%emt 0:00:09]} 31. Nxa4 {[%emt 0:02:48]} Bc7 {[%emt 0:01:02]} 32. Ra2 {[%emt 0:00:08]} g6 {[%emt 0:02:53]} 33. Nc3 {[%emt 0:01:05]} Rxa2 {[%emt 0:00:22]} 34. Nxa2 {[%emt 0:00:03]} Ba5 {[%emt 0:00:08]} 35. Nc1 {[%emt 0:01:14]} b6 {[%emt 0:01:33]} 36. Nb3 {[%emt 0:00:08]} Bb4 {[%emt 0:00:09]} 37. cxb6 {[%emt 0:00:02]} Kxb6 {[%emt 0:00:05]} 38. Na1 {[%emt 0:00:01]} Kc6 {[%emt 0:00:34]} 39. Nc2 {[%emt 0:00:05]} Bd6 {[%emt 0:00:55]} 40. f4 {[%emt 0:02:20]} Kd7 {[%emt 0:01:47]} 41. Ne1 {[%emt 0:00:33]} 1/2-1/2

[Event "8th RTU Open 2018"]
[Site "Riga"]
[Date "2018.08.06"]
[Round "1"]
[White "Laurusas, Tomas"]
[Black "Tishova, Svetlana"]
[Result "1-0"]
[ECO "E10"]
[WhiteElo "2463"]
[BlackElo "2160"]
[Annotator "ChessBase"]
[PlyCount "49"]
[EventDate "2018.08.06"]
[EventType "swiss"]
[EventCountry "LAT"]
[SourceTitle "playchess.com"]
[Source "ChessBase"]
[SourceQuality "1"]
[TimeControl "5400+30"]

1. d4 {[%emt 0:00:16]} Nf6 {[%emt 0:00:00]} 2. c4 {[%emt 0:00:06]} e6 {[%emt 0:00:00]} 3. Nf3 {[%emt 0:00:04]} d5 {[%emt 0:00:00]} 4. g3 {[%emt 0:01:28]} Bb4+ {[%emt 0:00:02]} 5. Bd2 {[%emt 0:00:07]} Bd6 {[%emt 0:00:06]} 6. Bg2 {[%emt 0:00:09]} O-O {[%emt 0:00:18]} 7. O-O {[%emt 0:00:35]} c6 {[%emt 0:00:44]} 8. Nc3 {[%emt 0:08:04]} dxc4 {[%emt 0:05:18]} 9. e4 {[%emt 0:01:35]} Be7 {[%emt 0:00:07]} 10. a4 {[%emt 0:01:57]} b6 {[%emt 0:11:30]} 11. Qe2 {[%emt 0:04:34]} Qe8 {[%emt 0:05:00]} 12. Bg5 {[%emt 0:32:41]} Bb7 {[%emt 0:06:33]} 13. Nd2 {[%emt 0:04:05]} b5 {[%emt 0:13:54]} 14. Bxf6 {[%emt 0:04:37]} gxf6 {[%emt 0:00:13]} 15. e5 {[%emt 0:00:03]} Qd7 {[%emt 0:01:20]} 16. exf6 {[%emt 0:05:28]} Bxf6 {[%emt 0:02:23]} 17. Nde4 {[%emt 0:00:57]} Be7 {[%emt 0:05:25]} 18. Rad1 {[%emt 0:00:06]} Na6 {[%emt 0:05:56]} 19. Nc5 {[%emt 0:04:49]} Nxc5 {[%emt 0:09:41]} 20. dxc5 {[%emt 0:00:46]} Qc7 {[%emt 0:00:14]} 21. Qg4+ {[%emt 0:00:08]} Kh8 {[%emt 0:00:10]} 22. Qd4+ {[%emt 0:00:01]} e5 {[%emt 0:03:48]} 23. Qd7 {[%emt 0:01:02]} Rac8 {[%emt 0:00:10]} 24. Qf5 {[%emt 0:00:31]} Bxc5 {[%emt 0:07:51]} 25. Rd7 {[%emt 0:00:39]} 1-0

[Event "8th RTU Open 2018"]
[Site "Riga"]
[Date "2018.08.06"]
[Round "1"]
[White "Pechac, Jergus"]
[Black "Adocchio, Giampiero"]
[Result "1-0"]
[ECO "E21"]
[WhiteElo "2431"]
[BlackElo "2136"]
[Annotator "NA"]
[PlyCount "49"]
[EventDate "2018.08.06"]
[EventType "swiss"]
[EventCountry "LAT"]
[SourceTitle "playchess.com"]
[Source "ChessBase"]
[SourceQuality "1"]
[TimeControl "5400+30"]

1. d4 {[%emt 0:00:00]} Nf6 {[%emt 0:00:00]} 2. c4 {[%emt 0:00:00]} e6 {[%emt 0:00:00]} 3. Nc3 {[%emt 0:00:31]} Bb4 {[%emt 0:00:00]} 4. Nf3 {[%emt 0:00:23]} d5 {[%emt 0:00:00]} 5. Qa4+ {[%emt 0:01:31]} Nc6 {[%emt 0:00:04]} 6. a3 {[%emt 0:00:10]} Bxc3+ {[%emt 0:00:33]} 7. bxc3 {[%emt 0:02:36]} O-O {[%emt 0:04:31]} 8. Bg5 {[%emt 0:01:14]} h6 {[%emt 0:00:15]} 9. Bh4 {[%emt 0:00:10]} g5 {[%emt 0:01:02]} 10. Bg3 {[%emt 0:00:39]} Ne4 {[%emt 0:00:45]} 11. Qc2 {[%emt 0:01:01]} f5 {[%emt 0:16:05]} 12. e3 {[%emt 0:00:35]} Na5 {[%emt 0:18:39]} 13. Ne5 {[%emt 0:01:02]} c5 {[%emt 0:15:29]} 14. f3 {[%emt 0:03:01]} Nxg3 {[%emt 0:02:58]} 15. hxg3 {[%emt 0:00:08]} Kg7 {[%emt 0:02:19]} 16. Kf2 {[%emt 0:14:00]} Nc6 {[%emt 0:01:27]} 17. Nxc6 {[%emt 0:13:11]} bxc6 {[%emt 0:04:29]} 18. dxc5 {[%emt 0:00:30]} Qe7 {[%emt 0:04:27]} 19. cxd5 {[%emt 0:00:33]} cxd5 {[%emt 0:03:23]} 20. c4 {[%emt 0:00:51]} Qxc5 {[%emt 0:01:26]} 21. Qc3+ {[%emt 0:00:45]} Kg6 {[%emt 0:00:28]} 22. Be2 {[%emt 0:01:04]} Ba6 {[%emt 0:02:12]} 23. f4 {[%emt 0:02:08]} g4 {[%emt 0:01:49]} 24. Qe5 {[%emt 0:00:07]} Rae8 {[%emt 0:00:20]} 25. Bxg4 {[%emt 0:00:07]} 1-0

[Event "8th RTU Open 2018"]
[Site "Riga"]
[Date "2018.08.06"]
[Round "1"]
[White "Korchmar, Vasiliy"]
[Black "Etxagibel Larranaga, Asier"]
[Result "1-0"]
[ECO "D11"]
[WhiteElo "2415"]
[BlackElo "2134"]
[Annotator "NA"]
[PlyCount "99"]
[EventDate "2018.08.06"]
[EventType "swiss"]
[EventCountry "LAT"]
[SourceTitle "playchess.com"]
[Source "ChessBase"]
[SourceQuality "1"]
[TimeControl "5400+30"]

1. d4 {[%emt 0:00:00]} d5 {[%emt 0:00:00]} 2. c4 {[%emt 0:00:00]} c6 {[%emt 0:00:00]} 3. Nf3 {[%emt 0:00:00]} Nf6 {[%emt 0:00:00]} 4. g3 {[%emt 0:00:05]} dxc4 {[%emt 0:00:47]} 5. Bg2 {[%emt 0:00:27]} b5 {[%emt 0:00:53]} 6. Ne5 {[%emt 0:00:22]} Bb7 {[%emt 0:00:38]} 7. O-O {[%emt 0:00:24]} e6 {[%emt 0:03:18]} 8. b3 {[%emt 0:00:25]} cxb3 {[%emt 0:02:16]} 9. axb3 {[%emt 0:00:04]} Bd6 {[%emt 0:01:38]} 10. Nc3 {[%emt 0:03:00]} Qc7 {[%emt 0:15:49]} 11. Qc2 {[%emt 0:14:43]} a6 {[%emt 0:05:11]} 12. Nd3 {[%emt 0:07:02]} Nbd7 {[%emt 0:09:50]} 13. Ne4 {[%emt 0:05:39]} Nxe4 {[%emt 0:02:17]} 14. Bxe4 {[%emt 0:00:04]} Rc8 {[%emt 0:16:16]} 15. b4 {[%emt 0:06:34]} O-O {[%emt 0:01:54]} 16. Bb2 {[%emt 0:01:19]} h6 {[%emt 0:01:07]} 17. Rfc1 {[%emt 0:02:39]} Nb6 {[%emt 0:06:21]} 18. Nc5 {[%emt 0:04:17]} Nc4 {[%emt 0:02:59]} 19. Bc3 {[%emt 0:01:26]} Qe7 {[%emt 0:06:16]} 20. Bh7+ {[%emt 0:08:52]} Kh8 {[%emt 0:00:35]} 21. Bd3 {[%emt 0:00:05]} Nb6 {[%emt 0:02:51]} 22. e4 {[%emt 0:14:06]} Bxc5 {[%emt 0:05:43]} 23. dxc5 {[%emt 0:00:52]} Nd7 {[%emt 0:01:05]} 24. e5 {[%emt 0:08:31]} Rfd8 {[%emt 0:01:11]} 25. Rd1 {[%emt 0:01:25]} Nf8 {[%emt 0:01:20]} 26. Bb2 {[%emt 0:02:42]} Rd7 {[%emt 0:00:52]} 27. Be4 {[%emt 0:00:06]} Rd5 {[%emt 0:05:01]} 28. Bxd5 {[%emt 0:00:29]} cxd5 {[%emt 0:00:10]} 29. Bd4 {[%emt 0:00:20]} Nd7 {[%emt 0:00:11]} 30. Qd2 {[%emt 0:01:36]} Nb8 {[%emt 0:00:17]} 31. f4 {[%emt 0:08:03]} Nc6 {[%emt 0:00:16]} 32. Rf1 {[%emt 0:00:09]} Kg8 {[%emt 0:00:56]} 33. Rf3 {[%emt 0:00:56]} Rf8 {[%emt 0:02:28]} 34. Re1 {[%emt 0:00:40]} Ra8 {[%emt 0:01:26]} 35. Ra1 {[%emt 0:01:36]} Qc7 {[%emt 0:01:13]} 36. g4 {[%emt 0:01:09]} a5 {[%emt 0:00:38]} 37. bxa5 {[%emt 0:00:01]} Rxa5 {[%emt 0:00:08]} 38. Rxa5 {[%emt 0:00:12]} Nxa5 {[%emt 0:00:02]} 39. f5 {[%emt 0:01:25]} Nc4 {[%emt 0:01:07]} 40. Qf4 {[%emt 0:01:27]} Bc8 {[%emt 0:01:24]} 41. f6 {[%emt 0:01:21]} g5 {[%emt 0:00:02]} 42. Qg3 {[%emt 0:02:59]} Qa5 {[%emt 0:00:27]} 43. h4 {[%emt 0:00:48]} Nd2 {[%emt 0:01:05]} 44. Ra3 {[%emt 0:01:32]} Qb4 {[%emt 0:00:03]} 45. Qd3 {[%emt 0:01:57]} Nf3+ {[%emt 0:01:56]} 46. Qxf3 {[%emt 0:00:03]} Qxd4+ {[%emt 0:00:06]} 47. Kg2 {[%emt 0:00:50]} Bb7 {[%emt 0:01:22]} 48. hxg5 {[%emt 0:00:22]} hxg5 {[%emt 0:00:06]} 49. Ra7 {[%emt 0:00:16]} Bc6 {[%emt 0:01:37]} 50. Rc7 {[%emt 0:00:02]} 1-0